[Event "Early-Titled-Tuesday-Blitz-February-06-2024"]
[Site "Chess.com"]
[Date "2024.02.06"]
[Round "3"]
[White "Bekkedahl"]
[Black "tusplingher"]
[Result "0-1"]
[WhiteElo "2243"]
[BlackElo "2463"]
[TimeControl "180+1"]
[EndTime "8:27:39 PST"]
[Termination "tusplingher won by resignation"]

1. e4 {[%clk 0:03:00.9]} 1... c5 {[%clk 0:02:59.5]} 2. Nf3 {[%clk 0:03:00.8]}
2... d6 {[%clk 0:02:59.4]} 3. Bb5+ {[%clk 0:02:57.6]} 3... Bd7 {[%clk
0:02:58.5]} 4. Bxd7+ {[%clk 0:02:58.2]} 4... Qxd7 {[%clk 0:02:59]} 5. O-O {[%clk
0:02:58.5]} 5... Nc6 {[%clk 0:02:57.2]} 6. c3 {[%clk 0:02:57.5]} 6... Nf6 {[%clk
0:02:49.4]} 7. Re1 {[%clk 0:02:56.8]} 7... g6 {[%clk 0:02:48.1]} 8. d4 {[%clk
0:02:57.1]} 8... cxd4 {[%clk 0:02:47.5]} 9. cxd4 {[%clk 0:02:58]} 9... Bg7
{[%clk 0:02:45.4]} 10. Nc3 {[%clk 0:02:54.3]} 10... O-O {[%clk 0:02:42]} 11. Bg5
{[%clk 0:02:54.3]} 11... Rad8 {[%clk 0:02:36.6]} 12. Qd2 {[%clk 0:02:52.8]}
12... d5 {[%clk 0:01:54.8]} 13. e5 {[%clk 0:02:51.9]} 13... Ne8 {[%clk
0:01:54.7]} 14. e6 {[%clk 0:02:30.6]} 14... fxe6 {[%clk 0:01:52.5]} 15. Bh6
{[%clk 0:02:30.9]} 15... Rxf3 {[%clk 0:01:40.4]} 16. gxf3 {[%clk 0:02:28.9]}
16... Nxd4 {[%clk 0:01:38.1]} 17. Kg2 {[%clk 0:01:44.2]} 17... Bxh6 {[%clk
0:01:35.8]} 18. Qxh6 {[%clk 0:01:45.1]} 18... Nc2 {[%clk 0:01:28.8]} 19. Rac1
{[%clk 0:01:10.8]} 19... Nxe1+ {[%clk 0:01:27.2]} 20. Rxe1 {[%clk 0:01:11.7]}
20... Nf6 {[%clk 0:01:20.9]} 21. h4 {[%clk 0:01:05.9]} 21... Rf8 {[%clk
0:01:16.7]} 22. Qe3 {[%clk 0:00:59.7]} 22... Nh5 {[%clk 0:01:13.7]} 23. Ne2
{[%clk 0:00:46]} 23... Rf6 {[%clk 0:00:55.9]} 24. Rc1 {[%clk 0:00:39.3]} 24...
Qd6 {[%clk 0:00:39.7]} 25. Rc8+ {[%clk 0:00:34]} 25... Rf8 {[%clk 0:00:36.8]}
26. Rxf8+ {[%clk 0:00:22.4]} 26... Kxf8 {[%clk 0:00:37]} 27. Nd4 {[%clk
0:00:21]} 27... e5 {[%clk 0:00:30.8]} 28. Nb5 {[%clk 0:00:19.2]} 28... Qf6
{[%clk 0:00:29.2]} 29. Nc7 {[%clk 0:00:14.4]} 29... Qxh4 {[%clk 0:00:17.1]} 30.
Qh6+ {[%clk 0:00:13.2]} 30... Kg8 {[%clk 0:00:12.7]} 31. Ne6 {[%clk 0:00:12.4]}
31... Nf4+ {[%clk 0:00:11.1]} 32. Nxf4 {[%clk 0:00:13.1]} 32... Qxh6 {[%clk
0:00:11.2]} 0-1

[Event "Early-Titled-Tuesday-Blitz-February-06-2024"]
[Site "Chess.com"]
[Date "2024.02.06"]
[Round "3"]
[White "kleopl"]
[Black "Rud_Makarian"]
[Result "0-1"]
[WhiteElo "2517"]
[BlackElo "3026"]
[TimeControl "180+1"]
[EndTime "8:27:41 PST"]
[Termination "Rud_Makarian won on time"]

1. e4 {[%clk 0:03:00.9]} 1... c5 {[%clk 0:02:53.2]} 2. Nf3 {[%clk 0:02:59.3]}
2... d6 {[%clk 0:02:51.9]} 3. Bb5+ {[%clk 0:02:58.8]} 3... Nd7 {[%clk
0:02:51.7]} 4. O-O {[%clk 0:02:58.6]} 4... a6 {[%clk 0:02:51.9]} 5. Bd3 {[%clk
0:02:54.2]} 5... Ngf6 {[%clk 0:02:51.9]} 6. c3 {[%clk 0:02:52.2]} 6... b5 {[%clk
0:02:51.5]} 7. Re1 {[%clk 0:02:46.3]} 7... Bb7 {[%clk 0:02:52.1]} 8. Bc2 {[%clk
0:02:43.3]} 8... Rc8 {[%clk 0:02:52.7]} 9. a3 {[%clk 0:02:35.1]} 9... Qc7 {[%clk
0:02:48.9]} 10. d3 {[%clk 0:02:25.7]} 10... g6 {[%clk 0:02:48.5]} 11. Bg5 {[%clk
0:02:24]} 11... Bg7 {[%clk 0:02:48.9]} 12. Nbd2 {[%clk 0:02:24.2]} 12... O-O
{[%clk 0:02:49.4]} 13. Rc1 {[%clk 0:02:24.1]} 13... Rfe8 {[%clk 0:02:47.8]} 14.
d4 {[%clk 0:02:18.3]} 14... e5 {[%clk 0:02:37.7]} 15. d5 {[%clk 0:01:57.1]}
15... Kh8 {[%clk 0:02:28.2]} 16. Nf1 {[%clk 0:01:51.8]} 16... c4 {[%clk
0:02:21.3]} 17. Be3 {[%clk 0:01:41.9]} 17... Ng4 {[%clk 0:02:19]} 18. h3 {[%clk
0:01:39]} 18... Nxe3 {[%clk 0:02:18.9]} 19. Nxe3 {[%clk 0:01:39.9]} 19... Nc5
{[%clk 0:02:19.2]} 20. Qe2 {[%clk 0:01:31.8]} 20... Rb8 {[%clk 0:02:14.4]} 21.
Rcd1 {[%clk 0:01:22.1]} 21... Bc8 {[%clk 0:02:13.7]} 22. g4 {[%clk 0:01:09.5]}
22... Qd8 {[%clk 0:02:08.2]} 23. Kg2 {[%clk 0:01:06.2]} 23... Bh6 {[%clk
0:02:07.6]} 24. Rh1 {[%clk 0:01:01.2]} 24... Bf4 {[%clk 0:02:05.6]} 25. Kf1
{[%clk 0:00:46.5]} 25... a5 {[%clk 0:02:04]} 26. Ng2 {[%clk 0:00:45.6]} 26...
Bh6 {[%clk 0:02:01.4]} 27. Nfe1 {[%clk 0:00:33.1]} 27... b4 {[%clk 0:01:57.5]}
28. axb4 {[%clk 0:00:31]} 28... axb4 {[%clk 0:01:58.4]} 29. h4 {[%clk 0:00:26]}
29... bxc3 {[%clk 0:01:57.7]} 30. bxc3 {[%clk 0:00:25.6]} 30... Rb2 {[%clk
0:01:57.1]} 31. Rb1 {[%clk 0:00:19.9]} 31... Qb6 {[%clk 0:01:47.7]} 32. Rxb2
{[%clk 0:00:19.9]} 32... Qxb2 {[%clk 0:01:48.6]} 33. g5 {[%clk 0:00:18.8]} 33...
Bg7 {[%clk 0:01:48.9]} 34. Ne3 {[%clk 0:00:07]} 34... Qxc3 {[%clk 0:01:45]} 35.
Kg2 {[%clk 0:00:06.8]} 35... Ba6 {[%clk 0:01:36.3]} 36. h5 {[%clk 0:00:06.2]}
36... Nd3 {[%clk 0:01:37]} 37. Bxd3 {[%clk 0:00:01.6]} 37... cxd3 {[%clk
0:01:37.3]} 38. Qf3 {[%clk 0:00:01.4]} 38... d2 {[%clk 0:00:38.1]} 0-1

[Event "Early-Titled-Tuesday-Blitz-February-06-2024"]
[Site "Chess.com"]
[Date "2024.02.06"]
[Round "3"]
[White "EvgenyBurmakin"]
[Black "Vazabanga"]
[Result "0-1"]
[WhiteElo "2434"]
[BlackElo "2645"]
[TimeControl "180+1"]
[EndTime "8:27:42 PST"]
[Termination "Vazabanga won by checkmate"]

1. e4 {[%clk 0:03:00.9]} 1... c5 {[%clk 0:02:59.8]} 2. Nc3 {[%clk 0:03:01]} 2...
Nc6 {[%clk 0:02:59.5]} 3. Bb5 {[%clk 0:03:01.4]} 3... g6 {[%clk 0:02:59.1]} 4.
Bxc6 {[%clk 0:02:59.8]} 4... bxc6 {[%clk 0:02:59.2]} 5. f4 {[%clk 0:03:00.5]}
5... Bg7 {[%clk 0:02:59.5]} 6. Nf3 {[%clk 0:03:01.1]} 6... d6 {[%clk 0:02:59.9]}
7. d3 {[%clk 0:03:01.6]} 7... Nf6 {[%clk 0:03:00.4]} 8. O-O {[%clk 0:03:01.7]}
8... O-O {[%clk 0:03:00.8]} 9. Qe1 {[%clk 0:03:02.1]} 9... Nd7 {[%clk
0:02:53.2]} 10. f5 {[%clk 0:02:58]} 10... Ne5 {[%clk 0:02:42.6]} 11. Qh4 {[%clk
0:02:51.2]} 11... e6 {[%clk 0:02:39]} 12. f6 {[%clk 0:02:09.9]} 12... Bxf6
{[%clk 0:02:18.8]} 13. Ng5 {[%clk 0:02:03.5]} 13... h5 {[%clk 0:02:07.5]} 14.
Rxf6 {[%clk 0:01:38.6]} 14... Qxf6 {[%clk 0:02:04.9]} 15. Bf4 {[%clk 0:01:36.1]}
15... Qg7 {[%clk 0:02:00.4]} 16. Rf1 {[%clk 0:01:31.4]} 16... f6 {[%clk
0:01:59.6]} 17. Bxe5 {[%clk 0:01:00.7]} 17... dxe5 {[%clk 0:01:37.4]} 18. Nf3
{[%clk 0:00:56.5]} 18... c4 {[%clk 0:01:28.9]} 19. dxc4 {[%clk 0:00:51.1]} 19...
Ba6 {[%clk 0:01:28.9]} 20. b3 {[%clk 0:00:51.2]} 20... Rad8 {[%clk 0:01:29.1]}
21. Na4 {[%clk 0:00:49.2]} 21... Qh6 {[%clk 0:01:26]} 22. Qf2 {[%clk 0:00:46.9]}
22... Qg7 {[%clk 0:01:13.5]} 23. Nc5 {[%clk 0:00:42.4]} 23... Bc8 {[%clk
0:01:13.4]} 24. a4 {[%clk 0:00:38.4]} 24... g5 {[%clk 0:01:00.2]} 25. Nd3 {[%clk
0:00:30.3]} 25... g4 {[%clk 0:00:55.5]} 26. Nd2 {[%clk 0:00:29]} 26... Rd4
{[%clk 0:00:52.7]} 27. c5 {[%clk 0:00:23.8]} 27... f5 {[%clk 0:00:46.3]} 28. Nc4
{[%clk 0:00:17.6]} 28... fxe4 {[%clk 0:00:27.3]} 29. Qxf8+ {[%clk 0:00:16.8]}
29... Qxf8 {[%clk 0:00:28.2]} 30. Rxf8+ {[%clk 0:00:17.3]} 30... Kxf8 {[%clk
0:00:29.1]} 31. Ndxe5 {[%clk 0:00:17.8]} 31... Ba6 {[%clk 0:00:27.4]} 32. Nd6
{[%clk 0:00:10.4]} 32... e3 {[%clk 0:00:25.3]} 33. Ng6+ {[%clk 0:00:05.1]} 33...
Kg7 {[%clk 0:00:22.6]} 34. Ne5 {[%clk 0:00:04.6]} 34... Rd1# {[%clk 0:00:21.1]}
0-1

[Event "Early-Titled-Tuesday-Blitz-February-06-2024"]
[Site "Chess.com"]
[Date "2024.02.06"]
[Round "3"]
[White "Willi_Skibbe"]
[Black "KubaGepard"]
[Result "0-1"]
[WhiteElo "2337"]
[BlackElo "2559"]
[TimeControl "180+1"]
[EndTime "8:27:43 PST"]
[Termination "KubaGepard won on time"]

1. d4 {[%clk 0:02:55.7]} 1... Nf6 {[%clk 0:02:58]} 2. Nf3 {[%clk 0:02:55.6]}
2... e6 {[%clk 0:02:57.5]} 3. Bg5 {[%clk 0:02:52.1]} 3... c5 {[%clk 0:02:55.3]}
4. e3 {[%clk 0:02:51.8]} 4... h6 {[%clk 0:02:55.6]} 5. Bh4 {[%clk 0:02:49.1]}
5... Qb6 {[%clk 0:02:55.7]} 6. Nc3 {[%clk 0:02:48.6]} 6... Qxb2 {[%clk
0:02:38.5]} 7. Nb5 {[%clk 0:02:48]} 7... Qb4+ {[%clk 0:02:38.5]} 8. c3 {[%clk
0:02:46.6]} 8... Qa5 {[%clk 0:02:38.6]} 9. Bxf6 {[%clk 0:02:39.9]} 9... gxf6
{[%clk 0:02:39.5]} 10. dxc5 {[%clk 0:01:44.4]} 10... Bxc5 {[%clk 0:02:40.4]} 11.
Qd2 {[%clk 0:01:41]} 11... d5 {[%clk 0:02:29.3]} 12. Bd3 {[%clk 0:01:30.2]}
12... a6 {[%clk 0:02:17.2]} 13. Nbd4 {[%clk 0:01:27]} 13... e5 {[%clk
0:02:16.2]} 14. Nb3 {[%clk 0:01:27.1]} 14... Qc7 {[%clk 0:02:12.8]} 15. Be2
{[%clk 0:01:13.1]} 15... Be6 {[%clk 0:02:10.2]} 16. Nxc5 {[%clk 0:01:11]} 16...
Qxc5 {[%clk 0:02:11]} 17. O-O {[%clk 0:01:11.6]} 17... Nd7 {[%clk 0:02:08.5]}
18. Rab1 {[%clk 0:01:11]} 18... b5 {[%clk 0:02:08]} 19. a4 {[%clk 0:00:58.4]}
19... bxa4 {[%clk 0:02:08.9]} 20. Rb4 {[%clk 0:00:58.5]} 20... a5 {[%clk
0:02:05.6]} 21. Rxa4 {[%clk 0:00:56.7]} 21... Nb6 {[%clk 0:02:04.4]} 22. Ra2
{[%clk 0:00:56.2]} 22... O-O {[%clk 0:01:56.9]} 23. Rb1 {[%clk 0:00:55.5]} 23...
Rfb8 {[%clk 0:01:53.2]} 24. Rb5 {[%clk 0:00:54.3]} 24... Qc7 {[%clk 0:01:40.1]}
25. Ra1 {[%clk 0:00:24.7]} 25... Nd7 {[%clk 0:01:27.5]} 26. Qb2 {[%clk
0:00:19.3]} 26... a4 {[%clk 0:01:19.7]} 27. Rxb8+ {[%clk 0:00:17]} 27... Rxb8
{[%clk 0:01:19.1]} 28. Qa3 {[%clk 0:00:16.9]} 28... Nc5 {[%clk 0:01:18.2]} 29.
Ne1 {[%clk 0:00:15.4]} 29... Rb3 {[%clk 0:01:17.6]} 30. Qa2 {[%clk 0:00:14.5]}
30... Qa5 {[%clk 0:01:14.9]} 31. Bd1 {[%clk 0:00:11.4]} 31... Rxc3 {[%clk
0:01:12.5]} 32. Bxa4 {[%clk 0:00:09.5]} 32... Nxa4 {[%clk 0:01:00.6]} 33. Qxa4
{[%clk 0:00:10.4]} 33... Qxa4 {[%clk 0:01:01.2]} 34. Rxa4 {[%clk 0:00:10.1]}
34... Rc1 {[%clk 0:01:01.8]} 35. Kf1 {[%clk 0:00:10.4]} 35... d4 {[%clk
0:01:02.4]} 36. Ke2 {[%clk 0:00:07.4]} 36... Bc4+ {[%clk 0:00:51.2]} 37. Kd2
{[%clk 0:00:06.5]} 37... dxe3+ {[%clk 0:00:50.3]} 38. fxe3 {[%clk 0:00:04.7]}
38... Rd1+ {[%clk 0:00:50.5]} 39. Kxd1 {[%clk 0:00:03.3]} 39... Bb3+ {[%clk
0:00:50.8]} 40. Ke2 {[%clk 0:00:03.7]} 40... Bxa4 {[%clk 0:00:51.2]} 41. g3
{[%clk 0:00:03.6]} 41... Bc6 {[%clk 0:00:48.5]} 42. Kf2 {[%clk 0:00:03.9]} 42...
Be4 {[%clk 0:00:48.4]} 43. Nf3 {[%clk 0:00:01.8]} 43... Bxf3 {[%clk 0:00:45.1]}
44. Kxf3 {[%clk 0:00:02.7]} 44... f5 {[%clk 0:00:44.9]} 0-1

[Event "Early-Titled-Tuesday-Blitz-February-06-2024"]
[Site "Chess.com"]
[Date "2024.02.06"]
[Round "3"]
[White "Ariadna_Atreides"]
[Black "Quattroporte300"]
[Result "0-1"]
[WhiteElo "2180"]
[BlackElo "2397"]
[TimeControl "180+1"]
[EndTime "8:27:44 PST"]
[Termination "Quattroporte300 won on time"]

1. d4 {[%clk 0:02:49.7]} 1... g6 {[%clk 0:02:58.9]} 2. c4 {[%clk 0:02:47.3]}
2... Bg7 {[%clk 0:02:59.3]} 3. e4 {[%clk 0:02:46.8]} 3... d6 {[%clk 0:02:58]} 4.
Nc3 {[%clk 0:02:45.8]} 4... Nf6 {[%clk 0:02:57]} 5. h3 {[%clk 0:02:40.1]} 5...
O-O {[%clk 0:02:54.6]} 6. Bg5 {[%clk 0:02:39.7]} 6... h6 {[%clk 0:02:53.9]} 7.
Be3 {[%clk 0:02:38.1]} 7... c5 {[%clk 0:02:52]} 8. d5 {[%clk 0:02:35.2]} 8...
Qa5 {[%clk 0:02:47.6]} 9. Qd2 {[%clk 0:02:31.1]} 9... a6 {[%clk 0:02:43.4]} 10.
Bxh6 {[%clk 0:01:51.6]} 10... Bxh6 {[%clk 0:02:41.5]} 11. Qxh6 {[%clk
0:01:51.5]} 11... Nxe4 {[%clk 0:02:41.7]} 12. Ne2 {[%clk 0:01:51.2]} 12... Nd7
{[%clk 0:02:28.6]} 13. Qe3 {[%clk 0:01:49.7]} 13... Ndf6 {[%clk 0:02:26.4]} 14.
f3 {[%clk 0:01:26.1]} 14... Nxc3 {[%clk 0:02:25.6]} 15. Qxc3 {[%clk 0:01:26.1]}
15... Qxc3+ {[%clk 0:02:21.7]} 16. Nxc3 {[%clk 0:01:25.7]} 16... Bd7 {[%clk
0:02:19.6]} 17. a4 {[%clk 0:01:22.3]} 17... b6 {[%clk 0:02:07.2]} 18. Bd3 {[%clk
0:01:18.9]} 18... Rab8 {[%clk 0:02:07.3]} 19. Kd2 {[%clk 0:00:33]} 19... Kg7
{[%clk 0:02:07.4]} 20. b3 {[%clk 0:00:31.4]} 20... e5 {[%clk 0:02:06.8]} 21. g4
{[%clk 0:00:20.1]} 21... Rh8 {[%clk 0:01:57.9]} 22. h4 {[%clk 0:00:19.8]} 22...
Rh7 {[%clk 0:01:48.5]} 23. Rh2 {[%clk 0:00:17.5]} 23... Rbh8 {[%clk 0:01:41.3]}
24. Rah1 {[%clk 0:00:15.9]} 24... Kf8 {[%clk 0:01:40.9]} 25. h5 {[%clk
0:00:13.2]} 25... Kg7 {[%clk 0:01:30.3]} 26. Ne4 {[%clk 0:00:12]} 26... Nxe4+
{[%clk 0:01:23]} 27. Bxe4 {[%clk 0:00:12.9]} 27... Rh6 {[%clk 0:01:23.5]} 28.
Rg2 {[%clk 0:00:08.5]} 28... Kf8 {[%clk 0:01:15.7]} 29. Rgh2 {[%clk 0:00:07.7]}
29... f5 {[%clk 0:01:12.6]} 30. gxf5 {[%clk 0:00:06.9]} 30... gxf5 {[%clk
0:01:13.5]} 31. Bd3 {[%clk 0:00:06.6]} 31... Kf7 {[%clk 0:01:11.2]} 32. f4
{[%clk 0:00:06.2]} 32... Kf6 {[%clk 0:01:08.4]} 33. fxe5+ {[%clk 0:00:05.6]}
33... dxe5 {[%clk 0:01:08.5]} 34. Be2 {[%clk 0:00:06]} 34... f4 {[%clk
0:01:05.9]} 35. Bf3 {[%clk 0:00:06]} 35... Bf5 {[%clk 0:01:05.5]} 36. Re1 {[%clk
0:00:06]} 36... Bg6 {[%clk 0:00:55.6]} 37. Rhe2 {[%clk 0:00:06]} 37... Bxh5
{[%clk 0:00:54]} 38. Bxh5 {[%clk 0:00:05.8]} 38... Rxh5 {[%clk 0:00:54.4]} 39.
d6 {[%clk 0:00:06.2]} 39... Rd8 {[%clk 0:00:53.1]} 40. Kc3 {[%clk 0:00:06]}
40... Rxd6 {[%clk 0:00:53.4]} 41. Rg1 {[%clk 0:00:06]} 41... Rh3+ {[%clk
0:00:53.1]} 42. Kc2 {[%clk 0:00:05.6]} 42... Kf5 {[%clk 0:00:50.3]} 43. Rg8
{[%clk 0:00:05.3]} 43... Re3 {[%clk 0:00:46.9]} 44. Rxe3 {[%clk 0:00:04.1]}
44... fxe3 {[%clk 0:00:46.9]} 45. a5 {[%clk 0:00:03.3]} 45... bxa5 {[%clk
0:00:46.7]} 0-1

[Event "Early-Titled-Tuesday-Blitz-February-06-2024"]
[Site "Chess.com"]
[Date "2024.02.06"]
[Round "3"]
[White "gpsji27"]
[Black "DAVIDHDZSTS"]
[Result "1-0"]
[WhiteElo "2321"]
[BlackElo "1930"]
[TimeControl "180+1"]
[EndTime "8:27:47 PST"]
[Termination "gpsji27 won by checkmate"]

1. d4 {[%clk 0:02:59.2]} 1... e6 {[%clk 0:02:59.6]} 2. e4 {[%clk 0:02:58.9]}
2... d5 {[%clk 0:02:59.4]} 3. Nc3 {[%clk 0:02:59.5]} 3... Nf6 {[%clk 0:02:56.7]}
4. Bg5 {[%clk 0:02:59.4]} 4... dxe4 {[%clk 0:02:56.5]} 5. Nxe4 {[%clk
0:02:57.5]} 5... Be7 {[%clk 0:02:56.7]} 6. Bxf6 {[%clk 0:02:58]} 6... Bxf6
{[%clk 0:02:55.2]} 7. Nf3 {[%clk 0:02:58.6]} 7... O-O {[%clk 0:02:55]} 8. c3
{[%clk 0:02:59.2]} 8... Be7 {[%clk 0:02:54.1]} 9. Bd3 {[%clk 0:02:59.4]} 9...
Nd7 {[%clk 0:02:54.7]} 10. Qe2 {[%clk 0:02:58.7]} 10... Nf6 {[%clk 0:02:54.3]}
11. O-O-O {[%clk 0:02:58.1]} 11... c6 {[%clk 0:02:51.3]} 12. h4 {[%clk 0:02:55]}
12... Qa5 {[%clk 0:02:51]} 13. Kb1 {[%clk 0:02:48.3]} 13... b5 {[%clk
0:02:50.7]} 14. Nxf6+ {[%clk 0:02:32.2]} 14... Bxf6 {[%clk 0:02:49.7]} 15. Bxh7+
{[%clk 0:01:51.8]} 15... Kxh7 {[%clk 0:02:24.3]} 16. Ng5+ {[%clk 0:01:48.9]}
16... Bxg5 {[%clk 0:02:18.9]} 17. hxg5+ {[%clk 0:01:49.7]} 17... Kg6 {[%clk
0:02:18.7]} 18. Qh5+ {[%clk 0:01:27.7]} 18... Kf5 {[%clk 0:02:18.4]} 19. Qh7+
{[%clk 0:01:11.4]} 19... g6 {[%clk 0:02:17.6]} 20. Qg7 {[%clk 0:01:10.2]} 20...
Kxg5 {[%clk 0:01:26]} 21. Qxf8 {[%clk 0:01:04.2]} 21... b4 {[%clk 0:01:26.1]}
22. Qe7+ {[%clk 0:01:02.1]} 22... f6 {[%clk 0:01:24.7]} 23. Qh7 {[%clk
0:00:50.6]} 23... Qf5+ {[%clk 0:00:46.2]} 24. Ka1 {[%clk 0:00:47.2]} 24... Qg4
{[%clk 0:00:42.6]} 25. Qh6+ {[%clk 0:00:43.9]} 25... Kf5 {[%clk 0:00:40.8]} 26.
g3 {[%clk 0:00:20.6]} 26... c5 {[%clk 0:00:20.3]} 27. dxc5 {[%clk 0:00:18.4]}
27... Bb7 {[%clk 0:00:20.6]} 28. Rhe1 {[%clk 0:00:19]} 28... Be4 {[%clk
0:00:18.6]} 29. Qe3 {[%clk 0:00:19.2]} 29... Bd5 {[%clk 0:00:14.9]} 30. Rd4
{[%clk 0:00:19.1]} 30... Qf3 {[%clk 0:00:13.5]} 31. Rf4+ {[%clk 0:00:18.8]}
31... Qxf4 {[%clk 0:00:12.6]} 32. Qxf4# {[%clk 0:00:19.7]} 1-0

[Event "Early-Titled-Tuesday-Blitz-February-06-2024"]
[Site "Chess.com"]
[Date "2024.02.06"]
[Round "3"]
[White "lynette2015"]
[Black "losersgame"]
[Result "0-1"]
[WhiteElo "2193"]
[BlackElo "2534"]
[TimeControl "180+1"]
[EndTime "8:27:48 PST"]
[Termination "losersgame won on time"]

1. d4 {[%clk 0:02:58.8]} 1... Nf6 {[%clk 0:02:59.6]} 2. c4 {[%clk 0:02:55.8]}
2... Nc6 {[%clk 0:02:59.7]} 3. d5 {[%clk 0:02:54.7]} 3... Ne5 {[%clk 0:02:59.4]}
4. Qc2 {[%clk 0:02:52.4]} 4... e6 {[%clk 0:02:58.8]} 5. e4 {[%clk 0:02:49.9]}
5... Bc5 {[%clk 0:02:31.6]} 6. Nh3 {[%clk 0:02:39.6]} 6... O-O {[%clk
0:02:27.3]} 7. Nc3 {[%clk 0:02:36.4]} 7... d6 {[%clk 0:02:19.8]} 8. Be2 {[%clk
0:02:34.6]} 8... exd5 {[%clk 0:02:18.1]} 9. cxd5 {[%clk 0:02:31.3]} 9... Re8
{[%clk 0:02:14.3]} 10. Bg5 {[%clk 0:02:18.7]} 10... h6 {[%clk 0:02:03.2]} 11.
Bh4 {[%clk 0:02:15.4]} 11... Ng6 {[%clk 0:01:50.5]} 12. Bg3 {[%clk 0:02:12.5]}
12... Bxh3 {[%clk 0:01:34.1]} 13. gxh3 {[%clk 0:02:10.9]} 13... Qe7 {[%clk
0:01:33]} 14. f3 {[%clk 0:02:05.7]} 14... Nh5 {[%clk 0:01:31.7]} 15. O-O-O
{[%clk 0:01:55.6]} 15... Qg5+ {[%clk 0:01:23.7]} 16. Kb1 {[%clk 0:01:49]} 16...
Nxg3 {[%clk 0:01:20.7]} 17. hxg3 {[%clk 0:01:46.9]} 17... Qxg3 {[%clk
0:01:21.6]} 18. Na4 {[%clk 0:01:46.6]} 18... Be3 {[%clk 0:00:37.1]} 19. Qxc7
{[%clk 0:01:26.7]} 19... Re7 {[%clk 0:00:28.3]} 20. Qc3 {[%clk 0:01:22.3]} 20...
Bg5 {[%clk 0:00:23.7]} 21. Qb3 {[%clk 0:01:03]} 21... Nf4 {[%clk 0:00:19.7]} 22.
Nc3 {[%clk 0:00:43.2]} 22... Rc8 {[%clk 0:00:16]} 23. Qc2 {[%clk 0:00:17.9]}
23... Bf6 {[%clk 0:00:14.4]} 24. Rdg1 {[%clk 0:00:12.7]} 24... Qf2 {[%clk
0:00:13.5]} 25. Rf1 {[%clk 0:00:12]} 25... Qb6 {[%clk 0:00:11.8]} 26. Ka1 {[%clk
0:00:07.2]} 26... Rxc3 {[%clk 0:00:08.1]} 27. bxc3 {[%clk 0:00:03.2]} 27... Nxe2
{[%clk 0:00:08.3]} 0-1

[Event "Early-Titled-Tuesday-Blitz-February-06-2024"]
[Site "Chess.com"]
[Date "2024.02.06"]
[Round "3"]
[White "jcreyes69"]
[Black "Huragan007"]
[Result "1/2-1/2"]
[WhiteElo "2419"]
[BlackElo "2593"]
[TimeControl "180+1"]
[EndTime "8:27:49 PST"]
[Termination "Game drawn by repetition"]

1. e4 {[%clk 0:02:55.2]} 1... c5 {[%clk 0:02:59.2]} 2. Nf3 {[%clk 0:02:51.7]}
2... d6 {[%clk 0:02:59.8]} 3. c3 {[%clk 0:02:46.1]} 3... Nf6 {[%clk 0:02:59.4]}
4. h3 {[%clk 0:02:42.3]} 4... g6 {[%clk 0:02:57.9]} 5. Be2 {[%clk 0:02:40.4]}
5... Bg7 {[%clk 0:02:58.1]} 6. Bd3 {[%clk 0:02:39]} 6... O-O {[%clk 0:02:55.6]}
7. O-O {[%clk 0:02:37.9]} 7... a6 {[%clk 0:02:43.6]} 8. Bc2 {[%clk 0:02:37.9]}
8... b5 {[%clk 0:02:43.7]} 9. d4 {[%clk 0:02:38.2]} 9... cxd4 {[%clk 0:02:36.6]}
10. cxd4 {[%clk 0:02:37.5]} 10... Bb7 {[%clk 0:02:37]} 11. Re1 {[%clk
0:02:37.5]} 11... Nc6 {[%clk 0:02:35.9]} 12. a3 {[%clk 0:02:38]} 12... Rc8
{[%clk 0:02:33.6]} 13. Nc3 {[%clk 0:02:38.1]} 13... Na5 {[%clk 0:02:30.7]} 14.
Qe2 {[%clk 0:02:20.3]} 14... Nc4 {[%clk 0:02:20.7]} 15. e5 {[%clk 0:02:13.3]}
15... dxe5 {[%clk 0:02:02.5]} 16. dxe5 {[%clk 0:02:14.2]} 16... Nd5 {[%clk
0:01:59.9]} 17. Nxd5 {[%clk 0:02:09.7]} 17... Qxd5 {[%clk 0:01:53.3]} 18. Bb3
{[%clk 0:01:52.2]} 18... Qc6 {[%clk 0:01:40.5]} 19. Bf4 {[%clk 0:01:46.5]} 19...
Rfd8 {[%clk 0:01:22.7]} 20. Rac1 {[%clk 0:01:43.3]} 20... Qb6 {[%clk 0:01:17.3]}
21. Bxc4 {[%clk 0:00:45.3]} 21... bxc4 {[%clk 0:01:14.7]} 22. Be3 {[%clk
0:00:43.5]} 22... Qb5 {[%clk 0:01:09.1]} 23. Bg5 {[%clk 0:00:37.9]} 23... Bxf3
{[%clk 0:01:01.7]} 24. Qxf3 {[%clk 0:00:36.3]} 24... Qxb2 {[%clk 0:00:55.2]} 25.
Bxe7 {[%clk 0:00:34.9]} 25... Re8 {[%clk 0:00:48.7]} 26. Bf6 {[%clk 0:00:32.3]}
26... Re6 {[%clk 0:00:44.1]} 27. Bxg7 {[%clk 0:00:26.9]} 27... Kxg7 {[%clk
0:00:45]} 28. Rb1 {[%clk 0:00:21.9]} 28... Qd2 {[%clk 0:00:29.6]} 29. Red1
{[%clk 0:00:18.6]} 29... Qg5 {[%clk 0:00:28.4]} 30. Rb7 {[%clk 0:00:17.5]} 30...
Rf8 {[%clk 0:00:27.7]} 31. Rdd7 {[%clk 0:00:17.4]} 31... Qf5 {[%clk 0:00:27.9]}
32. Qxf5 {[%clk 0:00:16.6]} 32... gxf5 {[%clk 0:00:28.8]} 33. f4 {[%clk
0:00:17]} 33... Rc6 {[%clk 0:00:28.3]} 34. g4 {[%clk 0:00:11.1]} 34... fxg4
{[%clk 0:00:24.9]} 35. hxg4 {[%clk 0:00:12]} 35... c3 {[%clk 0:00:24.9]} 36.
Rbc7 {[%clk 0:00:12.4]} 36... Rc8 {[%clk 0:00:21.1]} 37. Rxf7+ {[%clk
0:00:12.3]} 37... Kg8 {[%clk 0:00:21.2]} 38. Rg7+ {[%clk 0:00:12.3]} 38... Kf8
{[%clk 0:00:20.9]} 39. Rgf7+ {[%clk 0:00:10.5]} 39... Kg8 {[%clk 0:00:20.2]} 40.
Rg7+ {[%clk 0:00:10.9]} 40... Kf8 {[%clk 0:00:20.5]} 41. Rgf7+ {[%clk
0:00:11.4]} 41... Kg8 {[%clk 0:00:21]} 1/2-1/2